fUSD/lending_fUSD_20240214
["ID","MTS","AMOUNT","RATE_DAILY","PERIOD"]
[313990854,1707918660543,-150.0,0.00036986,2]
[313990855,1707918660553,-500.0,0.00036986,2]
[313990856,1707918660561,-500.0,0.00036986,2]
[313990857,1707918660570,-500.0,0.00036986,2]
[313990858,1707918660579,-530.29879257,0.00036986,2]
[313990859,1707918660589,-500.0,0.00036986,2]
[313990860,1707918660597,-500.0,0.00036986,2]
[313990861,1707918660607,-500.0,0.00036986,2]
[313990862,1707918660616,-500.0,0.00036986,2]
[313990863,1707918660626,-500.0,0.00036986,2]
[313990864,1707918660637,-500.0,0.00036986,2]
[313990865,1707918660647,-500.0,0.00036986,2]
[313990866,1707918660658,-500.0,0.00036986,2]
[313990867,1707918660668,-500.0,0.00036986,2]
[313990868,1707918660677,-500.0,0.00036986,2]
[313990869,1707918660686,-591.90485694,0.00036986,2]
[313990870,1707918660695,-500.0,0.00036986,2]
[313990871,1707918660704,-500.0,0.00036986,2]
[313990872,1707918660715,-500.0,0.00036986,2]
[313990873,1707918660724,-500.0,0.00036986,2]
[313990874,1707918660734,-500.0,0.00036986,2]
[313990875,1707918660744,-500.0,0.00036986,2]
[313990876,1707918660753,-666.65,0.00036986,2]
[313990877,1707918660763,-313.4019731,0.00036986,2]
[313990878,1707918660773,-500.0,0.00036986,2]
[313990879,1707918660782,-500.0,0.00036986,2]
[313990880,1707918660792,-500.0,0.00036986,2]
[313990881,1707918660802,-500.0,0.00036986,2]
[313990882,1707918660811,-500.0,0.00036986,2]
[313990883,1707918660820,-500.0,0.00036986,2]
[313990884,1707918660830,-500.0,0.00036986,2]
[313990885,1707918660839,-500.0,0.00036986,2]
[313990886,1707918660848,-630.23059679,0.00036986,2]
[313990887,1707918660858,-500.0,0.00036986,10]
[313990888,1707918660867,-500.0,0.00036986,2]
[313990889,1707918660877,-500.0,0.00036986,2]
[313990890,1707918660886,-500.0,0.00036986,2]
[313990891,1707918660896,-500.0,0.00036986,2]
[313990892,1707918660905,-614.61567124,0.00036986,2]
[313990893,1707918660915,-500.34018107,0.00036986,2]
[313990894,1707918660925,-500.0,0.00036986,2]
[313990895,1707918660935,-261.11114789,0.00036986,2]
[313990896,1707918660945,-500.0,0.00036986,2]
[313990897,1707918660954,-500.0,0.00036986,2]
[313990898,1707918660964,-500.0,0.00036986,2]
[313990899,1707918660974,-500.0,0.00036986,2]
[313990900,1707918660983,-504.02387735,0.00036986,2]
[313990901,1707918660993,-610.71,0.00036986,2]
[313990902,1707918661003,-500.0,0.00036986,2]
[313990903,1707918661012,-502.70969357,0.00036986,2]
[313990904,1707918661021,-500.0,0.00036986,2]
[313990905,1707918661031,-500.0,0.00036986,2]
[313990906,1707918661040,-509.41094053,0.00036986,2]
[313990907,1707918661050,-511.09366452,0.00036986,2]
[313990908,1707918661059,-500.0,0.00036986,2]
[313990909,1707918661069,-500.0,0.00036986,2]
[313990910,1707918661078,-500.0,0.00036986,2]
[313990911,1707918661087,-500.0,0.00036986,2]
[313990912,1707918661096,-500.0,0.00036986,2]
[313990913,1707918661106,-500.0,0.00036986,2]
[313990914,1707918661116,-500.0,0.00036986,2]
[313990915,1707918661125,-500.0,0.00036986,2]
[313990916,1707918661136,-500.0,0.00036986,2]
[313990917,1707918661146,-500.0,0.00036986,2]
[313990918,1707918661156,-554.07,0.00036986,2]
[313990919,1707918661166,-542.31,0.00036986,2]
[313990920,1707918661176,-500.43763657,0.00036986,2]
[313990921,1707918661185,-553.70559019,0.00036986,2]
[313990922,1707918661195,-320.86975487,0.00036986,2]
[313990923,1707918661205,-500.0,0.00036986,2]
[313990924,1707918661214,-500.0,0.00036986,2]
[313990925,1707918661225,-500.0,0.00036986,2]
[313990926,1707918661235,-680.98,0.00036986,2]
[313990927,1707918661244,-500.0,0.00036986,2]
[313990928,1707918661253,-500.0,0.00036986,2]
[313990929,1707918661263,-500.0,0.00036986,2]
[313990930,1707918661272,-591.46167339,0.00036986,2]
[313990931,1707918661281,-564.97,0.00036986,2]
[313990932,1707918661290,-500.0,0.00036986,2]
[313990933,1707918661300,-500.0,0.00036986,2]
[313990934,1707918661309,-571.20511231,0.00036986,2]
[313990935,1707918661319,-500.0,0.00036986,2]
[313990936,1707918661330,-500.0,0.00036986,2]
[313990937,1707918661341,-1037.12,0.00036986,2]
[313990938,1707918661352,-500.0,0.00036986,2]
[313990939,1707918661362,-563.83432973,0.00036986,2]
[313990940,1707918661374,-639.43,0.00036986,2]
[313990941,1707918661383,-500.0,0.00036986,2]
[313990942,1707918661393,-500.0,0.00036986,2]
[313990943,1707918661402,-354.37351435,0.00036986,2]
[313990944,1707918661411,-593.09,0.00036986,2]
[313990945,1707918661422,-662.66,0.00036986,2]
[313990946,1707918661434,-586.77,0.00036986,2]
[313990947,1707918661444,-500.0,0.00036986,2]
[313990948,1707918661454,-500.0,0.00036986,2]
[313990949,1707918661465,-752.61,0.00036986,2]
[313990950,1707918661474,-511.93169262,0.00036986,2]
[313990951,1707918661483,-781.56,0.00036986,2]
[313990952,1707918661493,-537.99903768,0.00036986,2]
[313990953,1707918661502,-500.0,0.00036986,2]
[313990954,1707918661511,-500.0,0.00036986,2]
[313990955,1707918661523,-686.38,0.00036986,2]
[313990956,1707918661532,-500.0,0.00036986,2]
[313990957,1707918661542,-538.8,0.00036986,2]
[313990958,1707918661552,-500.0,0.00036986,2]
[313990959,1707918661561,-500.0,0.00036986,2]
[313990960,1707918661572,-500.0,0.00036986,2]
[313990961,1707918661582,-500.0,0.00036986,2]
[313990962,1707918661591,-500.0,0.00036986,2]
[313990963,1707918661599,-500.0,0.00036986,2]
[313990964,1707918661609,-500.0,0.00036986,2]
[313990965,1707918661619,-500.0,0.00036986,2]
[313990966,1707918661628,-500.0,0.00036986,2]
[313990967,1707918661640,-1000.0,0.00036986,7]
[313990968,1707918661649,-500.0,0.00036986,2]
[313990969,1707918661658,-541.78035211,0.00036986,2]
[313990970,1707918661667,-500.0,0.00036986,2]
[313990971,1707918661677,-538.79,0.00036986,2]
[313990972,1707918661686,-1088.05,0.00036986,2]
[313990973,1707918661695,-500.0,0.00036986,2]
[313990974,1707918661705,-500.0,0.00036986,2]
[313990975,1707918661714,-500.0,0.00036986,2]
[313990976,1707918661723,-500.0,0.00036986,2]
[313990977,1707918661733,-740.2,0.00036986,2]
[313990978,1707918661742,-500.0,0.00036986,2]
[313990979,1707918661751,-1131.8,0.00036986,2]
[313990980,1707918661760,-688.02,0.00036986,2]
[313990981,1707918661769,-591.14750221,0.00036986,2]
[313990982,1707918661778,-500.0,0.00036986,2]
[313990983,1707918661787,-500.0,0.00036986,2]
[313990984,1707918661797,-1651.95,0.00036986,2]
[313990985,1707918661806,-525.42,0.00036986,2]
[313990986,1707918661816,-769.2,0.00036986,2]
[313990987,1707918661825,-500.0,0.00036986,2]
[313990988,1707918661834,-500.0,0.00036986,2]
[313990989,1707918661843,-500.0,0.00036986,2]
[313990990,1707918661854,-500.0,0.00036986,2]
[313990991,1707918661863,-500.0,0.00036986,2]
[313990992,1707918661873,-538.5396505,0.00036986,2]
[313990993,1707918661882,-500.0,0.00036986,2]
[313990994,1707918661893,-500.0,0.00036986,2]
[313990995,1707918661903,-994.52,0.00036986,2]
[313990996,1707918661913,-500.0,0.00036986,2]
[313990997,1707918661922,-1207.68,0.00036986,2]
[313990998,1707918661931,-1000.0,0.00036986,2]
[313990999,1707918661941,-500.0,0.00036986,2]
[313991000,1707918661952,-578.80267441,0.00036986,2]
[313991001,1707918661961,-644.98,0.00036986,2]
[313991002,1707918661970,-500.0,0.00036986,2]
[313991003,1707918661981,-500.0,0.00036986,2]
[313991004,1707918661991,-1105.47,0.00036986,2]
[313991005,1707918662000,-899.54,0.00036986,2]
[313991006,1707918662010,-500.0,0.00036986,2]
[313991007,1707918662019,-500.0,0.00036986,2]
[313991008,1707918662030,-686.26,0.00036986,2]
[313991009,1707918662039,-859.98,0.00036986,2]
[313991010,1707918662049,-964.36,0.00036986,2]
[313991011,1707918662216,-500.0,0.00036986,2]
[313991012,1707918662226,-509.76,0.00036986,2]
[313991013,1707918662237,-1087.88,0.00036986,2]
[313991014,1707918662246,-885.89,0.00036986,2]
[313991015,1707918662255,-500.0,0.00036986,2]
[313991016,1707918662265,-1467.73,0.00036986,2]
[313991017,1707918662274,-799.09,0.00036986,2]
[313991018,1707918662284,-500.0,0.00036986,2]
[313991019,1707918662293,-500.0,0.00036986,2]
[313991020,1707918662303,-542.62,0.00036986,2]
[313991021,1707918662312,-873.25,0.00036986,2]
[313991022,1707918662322,-535.95784409,0.00036986,2]
[313991023,1707918662332,-1208.48,0.00036986,2]
[313991024,1707918662342,-595.65,0.00036986,2]
[313991025,1707918662352,-1125.43,0.00036986,2]
[313991026,1707918662362,-500.0,0.00036986,2]
[313991027,1707918662371,-640.41,0.00036986,2]
[313991028,1707918662381,-1575.86,0.00036986,2]
[313991029,1707918662390,-500.0,0.00036986,2]
[313991030,1707918662399,-500.0,0.00036986,2]
[313991031,1707918662409,-609.63,0.00036986,2]
[313991032,1707918662419,-500.0,0.00036986,2]
[313991033,1707918662429,-738.2,0.00036986,2]
[313991034,1707918662440,-553.78,0.00036986,2]
[313991035,1707918662449,-585.93,0.00036986,2]
[313991036,1707918662461,-863.16,0.00036986,2]
[313991037,1707918662472,-1318.95,0.00036986,2]
[313991038,1707918662481,-343.74081773,0.00036986,2]
[313991039,1707918662491,-500.0,0.00036986,2]
[313991040,1707918662500,-632.49,0.00036986,2]
[313991041,1707918662510,-878.83,0.00036986,2]
[313991042,1707918662521,-500.0,0.00036986,2]
[313991043,1707918662530,-837.17,0.00036986,2]
[313991044,1707918662539,-659.26,0.00036986,2]
[313991045,1707918662549,-1230.61,0.00036986,2]
[313991046,1707918662558,-500.0,0.00036986,2]
[313991047,1707918662568,-500.0,0.00036986,2]
[313991048,1707918662577,-500.0,0.00036986,2]
[313991049,1707918662587,-1303.9,0.00036986,2]
[313991050,1707918662597,-500.0,0.00036986,2]
[313991051,1707918662606,-500.0,0.00036986,2]
[313991052,1707918662615,-253.56724699,0.00036986,2]
[313991053,1707918662624,-1302.02,0.00036986,2]
[313991054,1707918662635,-695.14,0.00036986,2]
[313991055,1707918662644,-1326.61,0.00036986,2]
[313991056,1707918662654,-483.38260013,0.00036986,2]
[313991057,1707918662663,-997.21,0.00036986,2]
[313991058,1707918662673,-500.0,0.00036986,2]
[313991059,1707918662682,-500.0,0.00036986,2]
[313991060,1707918662692,-500.0,0.00036986,2]
[313991061,1707918662701,-500.0,0.00036986,2]
[313991062,1707918662712,-500.0,0.00036986,2]
[313991063,1707918662721,-1210.25,0.00036986,2]
[313991064,1707918662730,-1036.2,0.00036986,2]
[313991065,1707918662740,-277.39056651,0.00036986,2]
[313991066,1707918662750,-500.0,0.00036986,2]
[313991067,1707918662759,-500.0,0.00036986,2]
[313991068,1707918662771,-500.0,0.00036986,2]
[313991069,1707918662781,-500.0,0.00036986,2]
[313991070,1707918662791,-500.0,0.00036986,2]
[313991071,1707918662801,-1554.02,0.00036986,2]
[313991072,1707918662810,-794.8,0.00036986,2]
[313991073,1707918662821,-825.62,0.00036986,2]
[313991074,1707918662831,-639.39,0.00036986,2]
[313991075,1707918662841,-1028.27,0.00036986,2]
[313991076,1707918662851,-500.0,0.00036986,2]
[313991077,1707918662861,-500.0,0.00036986,2]
[313991078,1707918662870,-500.0,0.00036986,2]
[313991079,1707918662879,-500.0,0.00036986,2]
[313991080,1707918662888,-1356.73,0.00036986,2]
[313991081,1707918662897,-1099.78,0.00036986,2]
[313991082,1707918662907,-1213.75,0.00036986,2]
[313991083,1707918662916,-995.39,0.00036986,2]
[313991084,1707918662925,-500.0,0.00036986,2]
[313991085,1707918662934,-646.45,0.00036986,2]
[313991086,1707918662943,-1321.75,0.00036986,2]
[313991087,1707918662953,-500.0,0.00036986,2]
[313991088,1707918662962,-1084.13,0.00036986,2]
[313991089,1707918662971,-1094.34,0.00036986,2]
[313991090,1707918662981,-500.0,0.00036986,7]
[313991091,1707918662992,-529.24,0.00036986,2]
[313991092,1707918663001,-250.0,0.00036986,2]
[313991093,1707918663011,-500.0,0.00036986,2]
[313991094,1707918663021,-500.0,0.00036986,2]
[313991095,1707918663030,-1288.85,0.00036986,2]
[313991096,1707918663040,-497.96031738,0.00036986,2]
[313991097,1707918663050,-500.0,0.00036986,2]
[313991098,1707918663059,-500.0,0.00036986,2]
[313991099,1707918663069,-613.15,0.00036986,2]
[313991100,1707918663079,-740.98,0.00036986,2]
[313991101,1707918663089,-440.66636834,0.00036986,2]
[313991102,1707918663099,-500.0,0.00036986,2]
[313991103,1707918663108,-500.0,0.00036986,2]
[313991104,1707918663118,-918.21,0.00036986,2]
[313991105,1707918663127,-790.84,0.00036986,2]
[313991106,1707918663136,-1413.05,0.00036986,2]
[313991107,1707918663146,-1413.61,0.00036986,2]
[313991108,1707918663155,-754.17,0.00036986,2]
[313991109,1707918663165,-587.26438532,0.00036986,2]
[313991110,1707918663174,-500.0,0.00036986,2]
[313991111,1707918663183,-768.11,0.00036986,2]
[313991112,1707918663191,-500.0,0.00036986,2]
[313991113,1707918663201,-500.0,0.00036986,2]
[313991114,1707918663210,-1147.8,0.00036986,2]
[313991115,1707918663219,-500.0,0.00036986,2]
[313991116,1707918663228,-884.99,0.00036986,2]
[313991117,1707918663239,-500.0,0.00036986,2]
[313991118,1707918663252,-1363.27,0.00036986,2]
[313991119,1707918663261,-944.25,0.00036986,2]
[313991120,1707918663272,-500.0,0.00036986,2]
[313991121,1707918663281,-500.0,0.00036986,2]
[313991122,1707918663291,-516.45,0.00036986,2]
[313991123,1707918663300,-1338.49,0.00036986,2]
[313991124,1707918663309,-500.0,0.00036986,2]
[313991125,1707918663319,-721.42,0.00036986,2]
[313991126,1707918663328,-500.0,0.00036986,2]
[313991127,1707918663337,-500.0,0.00036986,2]
[313991128,1707918663346,-1332.5,0.00036986,2]
[313991129,1707918663355,-617.74,0.00036986,2]
[313991130,1707918663365,-203.66,0.00036986,2]
[313991131,1707918663374,-500.0,0.00036986,2]
[313991132,1707918663383,-1122.42,0.00036986,2]
[313991133,1707918663392,-500.0,0.00036986,2]
[313991134,1707918663401,-500.0,0.00036986,2]
[313991135,1707918663410,-500.0,0.00036986,2]
[313991136,1707918663419,-812.15,0.00036986,2]
[313991137,1707918663429,-1122.49,0.00036986,2]
[313991138,1707918663439,-2014.14,0.00036986,2]
[313991139,1707918663449,-500.0,0.00036986,2]
[313991140,1707918663458,-500.0,0.00036986,2]
[313991141,1707918663467,-500.0,0.00036986,2]
[313991142,1707918663476,-500.0,0.00036986,2]
[313991143,1707918663487,-636.6,0.00036986,2]
[313991144,1707918663496,-500.0,0.00036986,2]
[313991145,1707918663506,-993.94,0.00036986,2]
[313991146,1707918663514,-353.39750928,0.00036986,2]
[313991147,1707918663525,-500.0,0.00036986,2]
[313991148,1707918663535,-500.0,0.00036986,2]
[313991149,1707918663545,-667.57,0.00036986,2]
[313991150,1707918663554,-504.7,0.00036986,2]
[313991151,1707918663564,-500.0,0.00036986,2]
[313991152,1707918663573,-500.0,0.00036986,2]
[313991153,1707918663583,-526.29480452,0.00036986,2]
[313991154,1707918663592,-500.0,0.00036986,2]
[313991155,1707918663601,-1764.29,0.00036986,2]
[313991156,1707918663612,-778.77,0.00036986,2]
[313991157,1707918663624,-2191.16,0.00036986,2]
[313991158,1707918663638,-591.81,0.00036986,2]
[313991159,1707918663647,-500.0,0.00036986,2]
[313991160,1707918663657,-500.0,0.00036986,2]
[313991161,1707918663667,-500.0,0.00036986,2]
[313991162,1707918663676,-1816.87,0.00036986,2]
[313991163,1707918663686,-796.54,0.00036986,2]
[313991164,1707918663695,-510.03,0.00036986,2]
[313991165,1707918663705,-509.57,0.00036986,2]
[313991166,1707918663715,-500.0,0.00036986,2]
[313991167,1707918663724,-711.35,0.00036986,2]
[313991168,1707918663736,-500.0,0.00036986,2]
[313991169,1707918663746,-500.0,0.00036986,2]
[313991170,1707918663756,-757.25,0.00036986,2]
[313991171,1707918663765,-1499.13,0.00036986,2]
[313991172,1707918663775,-500.0,0.00036986,2]
[313991173,1707918663785,-500.0,0.00036986,2]
[313991174,1707918663795,-566.41,0.00036986,2]
[313991175,1707918663804,-706.01,0.00036986,2]
[313991176,1707918663814,-500.0,0.00036986,2]
[313991177,1707918663823,-219.47305373,0.00036986,2]
[313991178,1707918663833,-1377.12,0.00036986,2]
[313991179,1707918663842,-248.1895992,0.00036986,2]
[313991180,1707918663851,-500.0,0.00036986,2]
[313991181,1707918663861,-1227.9,0.00036986,2]
[313991182,1707918663871,-996.41,0.00036986,2]
[313991183,1707918663880,-644.19,0.00036986,2]
[313991184,1707918663890,-500.0,0.00036986,2]
[313991185,1707918663899,-2029.29,0.00036986,2]
[313991186,1707918663908,-1069.18,0.00036986,2]
[313991187,1707918663918,-500.0,0.00036986,2]
[313991188,1707918663927,-514.5,0.00036986,2]
[313991189,1707918663936,-500.0,0.00036986,2]
[313991190,1707918663946,-1406.43,0.00036986,2]
[313991191,1707918663956,-500.0,0.00036986,2]
[313991192,1707918663965,-1046.25,0.00036986,2]
[313991193,1707918663975,-500.0,0.00036986,2]
[313991194,1707918663986,-1134.09,0.00036986,2]
[313991195,1707918663995,-500.0,0.00036986,2]
[313991196,1707918664005,-729.05,0.00036986,2]
[313991197,1707918664014,-622.27,0.00036986,2]
[313991198,1707918664023,-500.0,0.00036986,2]
[313991199,1707918664033,-520.20546661,0.00036986,2]
[313991200,1707918664043,-500.0,0.00036986,2]
[313991201,1707918664052,-500.0,0.00036986,2]
[313991202,1707918664061,-500.0,0.00036986,2]
[313991203,1707918664070,-500.0,0.00036986,2]
[313991204,1707918664079,-1071.7,0.00036986,2]
[313991205,1707918664088,-500.0,0.00036986,2]
[313991206,1707918664097,-762.21,0.00036986,2]
[313991207,1707918664106,-500.0,0.00036986,2]
[313991208,1707918664116,-500.0,0.00036986,2]
[313991209,1707918664125,-500.0,0.00036986,2]
[313991210,1707918664135,-1842.99,0.00036986,2]
[313991211,1707918664144,-517.99,0.00036986,2]
[313991212,1707918664153,-500.0,0.00036986,2]
[313991213,1707918664162,-500.0,0.00036986,2]
[313991214,1707918664171,-622.91193168,0.00036986,2]
[313991215,1707918664180,-500.0,0.00036986,2]
[313991216,1707918664189,-500.0,0.00036986,2]
[313991217,1707918664199,-714.9,0.00036986,2]
[313991218,1707918664208,-500.0,0.00036986,2]
[313991219,1707918664218,-500.0,0.00036986,2]
[313991220,1707918664226,-500.0,0.00036986,2]
[313991221,1707918664236,-505.27,0.00036986,2]
[313991222,1707918664245,-500.0,0.00036986,2]
[313991223,1707918664255,-609.86,0.00036986,2]
[313991224,1707918664264,-1657.14,0.00036986,2]
[313991225,1707918664273,-500.0,0.00036986,2]
[313991226,1707918664282,-500.0,0.00036986,2]
[313991227,1707918664291,-500.0,0.00036986,2]
[313991228,1707918664300,-532.72370155,0.00036986,2]
[313991229,1707918664309,-500.0,0.00036986,2]
[313991230,1707918664318,-522.1425375,0.00036986,2]
[313991231,1707918664327,-1211.81,0.00036986,2]
[313991232,1707918664337,-500.0,0.00036986,2]
[313991233,1707918664346,-240.48411378,0.00036986,2]
[313991234,1707918664354,-500.0,0.00036986,2]
[313991235,1707918664363,-500.0,0.00036986,2]
[313991236,1707918664373,-500.0,0.00036986,2]
[313991237,1707918664383,-521.97,0.00036986,2]
[313991238,1707918664392,-500.0,0.00036986,2]
[313991239,1707918664401,-500.0,0.00036986,2]
[313991240,1707918664410,-1086.38,0.00036986,2]
[313991241,1707918664419,-500.0,0.00036986,2]
[313991242,1707918664428,-500.0,0.00036986,2]
[313991243,1707918664436,-636.91,0.00036986,2]
[313991244,1707918664445,-1000.0,0.00036986,7]
[313991245,1707918664455,-500.0,0.00036986,2]
[313991246,1707918664464,-500.0,0.00036986,2]
[313991247,1707918664473,-500.0,0.00036986,2]
[313991248,1707918664482,-500.0,0.00036986,2]
[313991249,1707918664492,-590.73,0.00036986,2]
[313991250,1707918664502,-535.11519796,0.00036986,2]
[313991251,1707918664511,-500.0,0.00036986,2]
[313991252,1707918664521,-846.95,0.00036986,2]
[313991253,1707918664530,-500.0,0.00036986,2]
[313991254,1707918664539,-500.0,0.00036986,2]
[313991255,1707918664549,-500.0,0.00036986,2]
[313991256,1707918664558,-500.0,0.00036986,2]
[313991257,1707918664567,-506.06950481,0.00036986,2]
[313991258,1707918664577,-500.0,0.00036986,2]
[313991259,1707918664586,-500.0,0.00036986,2]
[313991260,1707918664595,-500.0,0.00036986,2]
[313991261,1707918664604,-551.44,0.00036986,2]
[313991262,1707918664614,-608.15,0.00036986,2]
[313991263,1707918664623,-500.0,0.00036986,2]
[313991264,1707918664633,-500.0,0.00036986,2]
[313991265,1707918664643,-709.47,0.00036986,2]
[313991266,1707918664652,-500.0,0.00036986,2]
[313991267,1707918664661,-524.06,0.00036986,2]
[313991268,1707918664670,-500.0,0.00036986,2]
[313991269,1707918664680,-797.65,0.00036986,2]
[313991270,1707918664689,-500.0,0.00036986,2]
[313991271,1707918664698,-500.0,0.00036986,2]
[313991272,1707918664709,-640.14,0.00036986,2]
[313991273,1707918664718,-500.0,0.00036986,2]
[313991274,1707918664727,-500.0,0.00036986,2]
[313991275,1707918664738,-500.0,0.00036986,2]
[313991276,1707918664748,-500.0,0.00036986,2]
[313991277,1707918664757,-511.05547132,0.00036986,2]
[313991278,1707918664766,-789.73,0.00036986,2]
[313991279,1707918664775,-500.0,0.00036986,2]
[313991280,1707918664784,-610.3,0.00036986,2]
[313991281,1707918664794,-500.0,0.00036986,2]
[313991282,1707918664803,-903.49,0.00036986,2]
[313991283,1707918664812,-650.72,0.00036986,2]
[313991284,1707918664822,-500.0,0.00036986,2]
[313991285,1707918664832,-500.0,0.00036986,2]
[313991286,1707918664841,-500.0,0.00036986,2]
[313991287,1707918664852,-500.0,0.00036986,2]
[313991288,1707918664861,-500.0,0.00036986,2]
[313991289,1707918664870,-500.0,0.00036986,2]
[313991290,1707918664879,-500.0,0.00036986,2]
[313991291,1707918664888,-500.0,0.00036986,2]
[313991292,1707918664898,-500.0,0.00036986,2]
[313991293,1707918664907,-524.90716691,0.00036986,2]
[313991294,1707918664916,-500.0,0.00036986,2]
[313991295,1707918664925,-522.08459078,0.00036986,2]
[313991296,1707918664934,-2051.57,0.00036986,2]
[313991297,1707918664943,-500.0,0.00036986,2]
[313991298,1707918664952,-533.32063585,0.00036986,2]
[313991299,1707918664961,-845.58,0.00036986,2]
[313991300,1707918664971,-500.0,0.00036986,2]
[313991301,1707918664981,-500.0,0.00036986,2]
[313991302,1707918664991,-882.95,0.00036986,2]
[313991303,1707918664999,-1484.98,0.00036986,2]
[313991304,1707918665009,-500.0,0.00036986,2]
[313991305,1707918665018,-500.0,0.00036986,2]
[313991306,1707918665027,-500.0,0.00036986,2]
[313991307,1707918665036,-500.0,0.00036986,2]
[313991308,1707918665046,-492.41516199,0.00036986,2]
[313991309,1707918665056,-514.07508358,0.00036986,2]
[313991310,1707918665066,-1266.63,0.00036986,2]
[313991311,1707918665076,-500.0,0.00036986,2]
[313991312,1707918665085,-500.0,0.00036986,2]
[313991313,1707918665095,-750.02,0.00036986,2]
[313991314,1707918665105,-725.91,0.00036986,2]
[313991315,1707918665115,-500.0,0.00036986,2]
[313991316,1707918665125,-676.49,0.00036986,2]
[313991317,1707918665136,-500.0,0.00036986,2]
[313991318,1707918665146,-1189.99,0.00036986,2]
[313991319,1707918665155,-995.85,0.00036986,2]
[313991320,1707918665165,-506.43113468,0.00036986,2]
[313991321,1707918665175,-1392.58,0.00036986,2]
[313991322,1707918665185,-1081.42,0.00036986,2]
[313991323,1707918665195,-545.48,0.00036986,2]
[313991324,1707918665205,-4833.85,0.00036986,2]
[313991325,1707918665215,-500.0,0.00036986,2]
[313991326,1707918665225,-258.96,0.00036986,2]
[313991327,1707918665235,-500.0,0.00036986,2]
[313991328,1707918665246,-5617.47,0.00036986,2]
[313991329,1707918665255,-500.0,0.00036986,2]
[313991330,1707918665265,-500.0,0.00036986,2]
[313991331,1707918665274,-874.25,0.00036986,2]
[313991332,1707918665284,-654.98,0.00036986,2]
[313991333,1707918665294,-500.0,0.00036986,2]
[313991334,1707918665303,-500.0,0.00036986,2]
[313991335,1707918665312,-500.0,0.00036986,2]
[313991336,1707918665322,-500.0,0.00036986,2]
[313991337,1707918665332,-678.96,0.00036986,2]
[313991338,1707918665341,-1141.89,0.00036986,2]
[313991339,1707918665351,-500.0,0.00036986,2]
[313991340,1707918665361,-500.0,0.00036986,2]
[313991341,1707918665371,-530.39,0.00036986,2]
[313991342,1707918665381,-500.0,0.00036986,2]
[313991343,1707918665390,-500.0,0.00036986,2]
[313991344,1707918665400,-500.0,0.00036986,2]
[313991345,1707918665410,-500.0,0.00036986,2]
[313991346,1707918665419,-500.0,0.00036986,2]
[313991347,1707918665429,-500.0,0.00036986,2]
[313991348,1707918665439,-11536.61,0.00036986,2]
[313991349,1707918665448,-500.0,0.00036986,2]
[313991350,1707918665459,-500.0,0.00036986,2]
[313991351,1707918665469,-517.23,0.00036986,2]
[313991352,1707918665479,-500.0,0.00036986,2]
[313991353,1707918665490,-500.0,0.00036986,2]